[Event "4NCL Div 1 2024-25"]
[Site "England"]
[Date "2024.11.23"]
[Round "1.26"]
[White "Hebden, Mark L"]
[Black "Macak, Stefan"]
[Result "1/2-1/2"]
[Annotator "TA"]
[ECO "D54"]
[WhiteElo "2372"]
[BlackElo "2310"]
[PlyCount "101"]
[EventDate "2024.11.23"]
[EventType "team-tourn"]
[EventCountry "ENG"]
[SourceTitle "playchess.com"]
[Source "ChessBase"]
[SourceQuality "1"]
[TimeControl "40/6000+30:3000+30"]

{[%evp 12,101,25,6,11,16,6,8,1,4,12,0,9,9,11,5,29,0,0,0,0,0,0,0,11,15,37,29,27,25,34,24,29,16,18,14,14,26,24,14,14,0,0,0,15,10,41,14,27,24,79,55,40,9,8,0,28,0,0,0,30,8,8,14,2,2,2,20,13,-83,0,0,0,0,0,0,0,0,0,0,3,0,0,0,0,0,0,0,0,0,0,0]} 1. d4 {[%emt 0:10:14]} d5 {[%emt 0:10:10]} 2. c4 {[%emt 0:00:21]} e6 {[%emt 0:00:20]} 3. Nc3 {[%emt 0:00:20]} Nf6 {[%emt 0:00:13]} 4. Bg5 {[%emt 0:01:42]} Be7 {[%emt 0:00:26]} 5. e3 {[%emt 0:02:14]} O-O {[%emt 0:00:59]} 6. Rc1 {[%emt 0:01:10]} h6 {[%emt 0:02:24]} 7. Bh4 {[%emt 0:01:39]} c5 {[%emt 0:01:52]} 8. dxc5 {[%emt 0:11:07]} dxc4 {[%emt 0:02:08]} 9. Bxc4 {[%emt 0:07:53]} Qxd1+ {[%emt 0:02:19]} 10. Rxd1 {[%emt 0:03:13]} Nbd7 {[%emt 0:02:25]} 11. Nf3 {[%emt 0:05:18][%cal Oc5c6]} Nxc5 {[%emt 0:03:43]} 12. O-O {[%emt 0:06:31]} a6 {[%emt 0:06:26]} 13. Nd4 {[%emt 0:07:51]} Re8 {[%emt 0:29:29][%cal Bf8e8,Be8e7,Be7e6,Be6b6,Bb6b5][%mdl 32]} 14. b4 {[%emt 0:07:21][%cal Oh4f6]} Nce4 {[%emt 0:11:37]} 15. Nxe4 {[%emt 0:01:31]} Nxe4 {[%emt 0:00:08]} 16. Bxe7 {[%emt 0:00:32]} Rxe7 {[%emt 0:00:27]} 17. f3 {[%emt 0:07:20]} Nf6 {[%emt 0:02:57]} 18. e4 {[%emt 0:00:28]} e5 {[%emt 0:04:06][%cal Oe7c7]} 19. Nb3 {[%emt 0:02:38]} Be6 {[%emt 0:03:37]} 20. Bxe6 {[%emt 0:00:21]} Rxe6 {[%emt 0:00:38]} 21. Nc5 {[%emt 0:00:06]} Rb6 {[%emt 0:03:39]} 22. a3 {[%emt 0:00:08]} a5 {[%emt 0:12:59]} 23. Na4 {[%emt 0:00:39]} Rb5 $1 {[%emt 0:02:14]} 24. Nc3 {[%emt 0:00:51]} Rb6 {[%emt 0:00:04]} 25. b5 {[%emt 0:00:35]} Rc8 {[%emt 0:00:56]} 26. Rd3 {[%emt 0:02:01]} Kf8 {[%emt 0:02:12]} 27. Rfd1 {[%emt 0:04:01]} Ke8 {[%emt 0:01:32] Prevents Rd8+.} 28. Kf2 {[%emt 0:00:47]} Re6 {[%emt 0:01:00]} 29. Na4 {[%emt 0:01:31]} Ke7 {[%emt 0:02:24]} 30. R1d2 {[%emt 0:00:36]} g5 {[%emt 0:00:44]} (30... Rc4 $11 31. Nb2 Rc1) 31. h3 {[%emt 0:02:27]} h5 {[%emt 0:00:19]} 32. g4 {[%emt 0:01:16]} h4 {[%emt 0:01:07]} 33. Ke3 {[%emt 0:04:39]} Ke8 {[%emt 0:00:43]} 34. Rc3 {[%emt 0:01:03]} Rxc3+ {[%emt 0:00:37]} 35. Nxc3 $11 {[%emt 0:00:02][%mdl 4096] Endgame KRN-KRN} Re7 {[%emt 0:00:35]} 36. Nd5 {[%emt 0:04:34]} Nxd5+ {[%emt 0:00:01]} 37. exd5 {[%emt 0:00:22] KR-KR} Rc7 $1 {[%emt 0:00:41]} 38. Ke4 {[%emt 0:00:45]} Kd7 {[%emt 0:00:35]} 39. Kxe5 {[%emt 0:02:32]} Rc3 {[%emt 0:00:21][%csl LRa3,LRf3]} 40. b6 {[%emt 0:04:27]} (40. Rf2 $11) 40... Rxa3 {[%emt 0:00:43]} ({Black should play} 40... Rxf3 $17 {White must now prevent ...f6+.} 41. Rc2 f6+ (41... Rxa3 $2 42. Rc7+ Kd8 43. Rxf7 $18) 42. Kd4 Kd6 (42... Rxh3 43. Rc7+ Kd6 44. Rxb7 $11)) 41. Rc2 {[%emt 0:50:34] Strongly threatening Rc7+.} Re3+ {[%emt 0:50:38]} (41... Rxf3 $2 {is the wrong capture.} 42. Rc7+ Kd8 43. Rxb7 $18) 42. Kf5 {[%emt 0:00:31]} Rxf3+ {[%emt 0:00:00]} 43. Kxg5 {[%emt 0:00:00]} Rxh3 {[%emt 0:00:00]} 44. Rc7+ {[%emt 0:00:00]} Kd6 {[%emt 0:00:00]} 45. Rxb7 {[%emt 0:00:00]} (45. Rxf7 Kxd5 46. Rf5+ (46. Rxb7 Kc6 $11) 46... Ke6) 45... Kxd5 {[%emt 0:00:00]} 46. Ra7 {[%emt 0:00:00]} Rb3 {[%emt 0:00:00]} 47. Rxa5+ {[%emt 0:00:00]} Ke6 {[%emt 0:00:00]} 48. Ra6 {[%emt 0:00:00]} h3 {[%emt 0:00:00]} 49. b7+ {[%emt 0:00:00]} Ke7 {[%emt 0:00:00]} 50. Ra7 {[%emt 0:00:00]} Ke6 {[%emt 0:00:00]} 51. Ra6+ {[%emt 0:00:00]} 1/2-1/2

[Event "4NCL Div 1 2024-25"]
[Site "England"]
[Date "2024.11.23"]
[Round "1.27"]
[White "Badacsonyi, Stanley"]
[Black "Williams, Simon K"]
[Result "0-1"]
[Annotator "TA"]
[ECO "A92"]
[WhiteElo "2298"]
[BlackElo "2442"]
[PlyCount "84"]
[EventDate "2024.11.23"]
[EventType "team-tourn"]
[EventCountry "ENG"]
[SourceTitle "playchess.com"]
[Source "ChessBase"]
[SourceQuality "1"]
[TimeControl "40/6000+30:3000+30"]

{[%evp 10,83,33,35,34,27,60,33,85,0,32,22,33,28,22,47,62,26,33,-35,-37,-63,-45,-66,-60,-118,-104,-166,-161,-241,-192,-211,-197,-784,-726,-831,-797,-669,-671,-822,-868,-828,-855,-1256,-1193,-1090,-1054,-1184,-273,-278,-273,-248,-244,-221,-256,-261,-243,-221,-250,-352,-1019,-1257,-1248,-1111,-1054,-29978,-29979,-29992,-29993,-29993,-29994,-29994,-29995,-29996,-29997,-29999]} 1. d4 {[%emt 0:10:01]} e6 {[%emt 0:10:21]} 2. c4 {[%emt 0:00:19]} f5 {[%emt 0:00:36]} 3. g3 {[%emt 0:00:18]} Nf6 {[%emt 0:00:25]} 4. Bg2 {[%emt 0:00:05]} d5 {[%emt 0:01:21]} 5. Nf3 {[%emt 0:00:26]} Be7 {[%emt 0:01:36]} 6. O-O {[%emt 0:00:28]} Ne4 {[%emt 0:01:12]} 7. Qc2 {[%emt 0:01:34]} Nc6 {[%emt 0:00:13]} 8. b3 {[%emt 0:05:21]} h5 {[%emt 0:01:19]} (8... Nb4 $14 9. Qd1 Bf6) 9. Ba3 {[%emt 0:05:30]} (9. h4 $16) 9... Bf6 {[%emt 1:27:57]} 10. Rd1 {[%emt 0:03:32]} h4 {[%emt 0:00:00]} 11. Nc3 {[%emt 0:02:33]} hxg3 {[%emt 0:00:00]} 12. hxg3 {[%emt 0:00:12]} Qd7 {[%emt 0:00:00]} 13. e3 {[%emt 0:07:56] cxd5 would now be deadly.} Qf7 {[%emt 0:00:00]} 14. Ne2 {[%emt 0:07:25]} (14. Rac1 $14) 14... g5 {[%emt 0:00:00]} 15. Bb2 {[%emt 0:02:40]} Qh5 {[%emt 0:00:00]} 16. Kf1 {[%emt 0:03:54]} Bd7 {[%emt 0:00:00] Black is more active.} 17. Ne5 {[%emt 0:04:43] White is now going downhill.} ({White has to play} 17. Bc3 $1 $15) 17... O-O-O {[%emt 0:00:00] Strongly threatening ...Bxe5.} 18. Nxd7 {[%emt 0:01:56]} (18. Nd3 $17) 18... Rxd7 $19 {[%emt 0:00:00]} 19. f3 {[%emt 0:03:22]} (19. cxd5 $142 Nb4 (19... Rxd5 20. Bxe4 Nb4 21. Qb1 $14) (19... exd5 $2 20. b4 $17) 20. Qc4 Nxd5 21. Qd3) 19... Nb4 {[%emt 0:00:00]} 20. Qb1 {[%emt 0:00:38]} f4 {[%emt 0:00:00]} 21. gxf4 $2 {[%emt 0:17:08]} (21. a3 Nc6 (21... Nxg3+ 22. Nxg3 fxg3 23. axb4 $18) 22. Qd3 Nxg3+ 23. Nxg3 fxg3 24. cxd5 exd5 25. Ke2) 21... gxf4 {[%emt 0:00:00]} 22. Nxf4 {[%emt 0:00:05]} Ng3+ {[%emt 0:00:00] Excellent horsemanship.} 23. Ke1 {[%emt 0:00:05]} Qh2 {[%emt 0:00:00]} 24. Kd2 {[%emt 0:02:38]} Bg5 {[%emt 0:00:00]} 25. Kc3 {[%emt 0:01:46] [#]} c5 $1 {[%emt 0:00:00][%mdl 512] White must now prevent ...Bxf4.} 26. Rd2 {[%emt 0:05:12] [#]} (26. Ba3 Bxf4) 26... e5 $1 {[%emt 0:00:00][%mdl 512]} 27. dxc5 {[%emt 0:00:37]} (27. Ba3 exd4+) 27... a5 {[%emt 0:00:00]} 28. Nxd5 {[%emt 0:01:51]} Nxd5+ $2 {[%emt 0:00:00]} (28... Bxe3 29. Nb6+ Kc7 30. Rxd7+ Kb8) 29. cxd5 {[%emt 0:00:11] And now Qd3 would win.} Bxe3 {[%emt 0:00:00]} 30. Qd3 {[%emt 0:00:55]} Bxd2+ {[%emt 0:00:00]} (30... Bxc5 31. Kc2 Rc7 32. Rad1 (32. Bxe5 $2 Bd6+ 33. Bc3 Bb4 $19) 32... Bb4+ 33. Kb1 Bxd2 34. Qxd2 $16) 31. Qxd2 {[%emt 0:00:05]} Rg8 {[%emt 0:00:00]} 32. Kc4 {[%emt 0:04:22][%cal Od2a5]} Nf5 {[%emt 0:00:49]} 33. Qxa5 {[%emt 0:01:16] aiming for Qa8+.} Rxg2 {[%emt 0:00:46]} (33... Qxg2 34. Qa8+ (34. Bxe5 $2 Qe2+ 35. Kb4 Qxe5 $19) 34... Kc7 35. Bxe5+ $11) 34. Qa8+ $2 {[%emt 0:00:11]} (34. Rh1 Rc2+ (34... Qxh1 35. Qa8+ Kc7 36. Bxe5+ $11) 35. Kb5 Rxc5+ (35... Qxh1 36. Qa8+ Kc7 37. Bxe5+ $11) (35... Qe2+ $2 36. Ka4 $18) 36. Kxc5 b6+ (36... Qxh1 37. Qa8+ Kc7 38. Qa5+ Kc8 39. Qa8+ Kc7 40. Qa5+ Kc8 $11) 37. Kxb6 Rb7+ (37... Qxh1 38. Qa8#) 38. Kc6 Qc2+ (38... Qxh1 $2 39. Qa8+ Rb8 40. Qa6+ Kd8 41. Qa5+ Ke8 42. Kc7 $18) (38... Ne7+ 39. Kc5 $15) 39. Bc3 Qxc3+ (39... Ne7+ 40. Kc5 $11) 40. Qxc3 Rc7+ 41. Kb6 Rxc3 42. b4) 34... Kc7 {[%emt 0:00:03] Hoping for ...Qf4+.} 35. d6+ {[%emt 0:00:09] [#]} Rxd6 $1 {[%emt 0:02:33][%cal Og2g4][%mdl 512] ( -> ...Rg4+!)} 36. Qa5+ {[%emt 0:02:03]} Kd7 {[%emt 0:00:30]} 37. cxd6 {[%emt 0:00:24]} Qf4+ {[%emt 0:00:53] Black mates.} (37... Rxb2 38. Qc7+ Ke6 39. Qc8+ Kf6 40. Qf8+ Kg6 41. Kb4 $17) 38. Kc5 {[%emt 0:01:05]} Rc2+ {[%emt 0:00:22]} ({Not} 38... Rxb2 39. Qc7+ Ke6 40. Qc8+ Kf7 41. Qd7+ Kf6 42. Qd8+ Kf7 43. Qd7+ Kf8 (43... Kf6 44. Qd8+ Ke6 45. Qg8+ Kf6 46. Qf8+ Ke6 47. Qg8+ Kf6 48. Qd8+ $11) 44. Qd8+ Kf7 45. Qd7+ $11) ({Stronger than} 38... Qe3+ 39. Kb4 Rxb2 40. Qc7+ Ke6 41. Qc8+ Kxd6 (41... Kf6 42. Qf8+ Ke6 43. Qe8+ Kd5 44. Qg8+ Kxd6 45. Rd1+ Ke7 46. Qd8+ Ke6 47. Qg8+ Ke7 48. Qd8+ Ke6 49. Rd7 $11) 42. Rd1+ Nd4 43. Qd8+ Ke6 44. Qe8+ Kf6 45. Qf8+ Ke6 46. Qe8+ Kf6 47. Qf8+ Ke6 48. Qe8+ $11) 39. Kb6 {[%emt 0:01:00]} Rc6+ {[%emt 0:00:32]} 40. Kxb7 {[%emt 0:00:18]} Nxd6+ {[%emt 0:00:06]} 41. Ka7 {[%emt 0:50:47]} Qe3+ {[%emt 0:50:10]} 42. Kb8 {[%emt 0:00:06]} Rc8# {[%emt 0:00:37] Weighted Error Value: White=0.64/Black=0.15 (very precise) .  Mistake:       	White=7     	Black=1      Inaccurate:     	White=3     	Black=2      OK:         	White=5     	Black=7      Best:        	White=3     	Black=2      Brilliant:      	---       	Black=1} 0-1

[Event "4NCL Div 1 2024-25"]
[Site "England"]
[Date "2024.11.23"]
[Round "1.28"]
[White "Pert, Richard G"]
[Black "Pang, Ethan"]
[Result "1-0"]
[Annotator "TA"]
[ECO "A46"]
[WhiteElo "2399"]
[BlackElo "2303"]
[PlyCount "81"]
[EventDate "2024.11.23"]
[EventType "team-tourn"]
[EventCountry "ENG"]
[SourceTitle "playchess.com"]
[Source "ChessBase"]
[SourceQuality "1"]
[TimeControl "40/6000+30:3000+30"]

{[%evp 9,81,6,7,10,12,0,0,-8,21,21,11,14,43,12,84,69,72,78,84,82,94,44,83,96,83,106,141,138,137,135,149,139,136,131,144,112,106,114,106,87,134,141,133,125,117,88,139,135,129,132,238,248,275,272,268,263,279,250,255,243,303,300,695,361,479,486,487,487,453,457,816,809,809,800]} 1. d4 {[%emt 0:10:14]} Nf6 {[%emt 0:10:53]} 2. Nf3 {[%emt 0:00:07]} e6 {[%emt 0:00:50]} 3. Bf4 {[%emt 0:00:16]} c5 {[%emt 0:00:57]} 4. e3 {[%emt 0:00:47]} Nc6 {[%emt 0:02:18]} 5. Nc3 {[%emt 0:03:16]} Qa5 {[%emt 0:10:58]} 6. Nd2 {[%emt 0:13:56] Nc4 is in the air Repels Ne4} cxd4 {[%emt 0:07:03]} 7. Nc4 {[%emt 0:01:54]} Qd8 {[%emt 0:01:42]} 8. exd4 {[%emt 0:07:14]} Bb4 {[%emt 0:25:43]} 9. Nd6+ {[%emt 0:12:28]} Ke7 {[%emt 0:03:56]} 10. Ndb5 {[%emt 0:03:25]} Nd5 {[%emt 0:04:56] Inhibits Bc7.} 11. Bd2 {[%emt 0:02:02]} Nf6 {[%emt 0:09:13] [#]} (11... Nxc3 $11 12. bxc3 Ba5) 12. d5 $1 $16 {[%emt 0:05:53]} exd5 {[%emt 0:05:49]} 13. a3 {[%emt 0:00:44]} Bxc3 {[%emt 0:03:07]} 14. Bxc3 {[%emt 0:00:45]} (14. bxc3 d6 $11) 14... Re8 {[%emt 0:00:59]} 15. Be2 {[%emt 0:01:42]} (15. Bxf6+ $16 Kxf6+ 16. Kd2) 15... a6 {[%emt 0:02:08]} 16. Bxf6+ {[%emt 0:06:04]} Kxf6 {[%emt 0:03:35]} 17. Nc3 {[%emt 0:01:57]} Ke7 {[%emt 0:04:01]} 18. Qxd5 {[%emt 0:03:11]} (18. Nxd5+ Kf8 $14) 18... Kf8 {[%emt 0:02:53]} 19. O-O-O {[%emt 0:01:08]} Re5 {[%emt 0:00:59]} 20. Qd3 {[%emt 0:01:13]} Qg5+ {[%emt 0:00:37]} 21. Kb1 {[%emt 0:00:08]} Qg6 {[%emt 0:00:17]} 22. f4 {[%emt 0:05:39]} Qxd3 {[%emt 0:00:42]} 23. Bxd3 {[%emt 0:00:54][%cal Be2d3,Bd3e4,Be4f3][%mdl 32]} (23. cxd3 $6 Rf5 $11) 23... Re8 {[%emt 0:00:57]} 24. Be4 {[%emt 0:10:07]} g6 {[%emt 0:01:42]} ({Better is} 24... Rb8) 25. Bf3 {[%emt 0:01:09]} Rb8 {[%emt 0:00:31]} 26. Nd5 {[%emt 0:00:53][%cal Bc3d5,Bd5b6,Bb6c4,Bc4d6][%mdl 32]} Rd8 {[%emt 0:01:00]} 27. Rhe1 {[%emt 0:01:22] Black is weak on the dark squares} Kg7 {[%emt 0:02:09] Wards off Nf6} (27... d6 $142 28. Re2 h6) 28. Nb6 $36 {[%emt 0:01:55][%mdl 2048] Keeping Black busy.} d6 {[%emt 0:04:35]} 29. Nc4 {[%emt 0:02:24] White is much more active.} Be6 {[%emt 0:00:00]} (29... h5 $16 {might work better.} 30. Nxd6 (30. Rxd6 Be6 $16) 30... Bg4 31. Bxg4 hxg4) 30. Nxd6 $18 {[%emt 0:00:17]} Na5 {[%emt 0:00:00]} 31. b4 {[%emt 0:04:01]} Nc4 {[%emt 0:00:00] [#]} 32. Rxe6 $1 {[%emt 0:01:44][%mdl 512]} Nxa3+ {[%emt 0:00:00]} 33. Kb2 {[%emt 0:00:04]} fxe6 {[%emt 0:00:00]} 34. Kxa3 {[%emt 0:00:05][%cal Oc2c4]} b6 {[%emt 0:00:00]} 35. c4 {[%emt 0:01:23] c5 is the strong threat.} Rf8 $2 {[%emt 0:01:13]} (35... Kf6 36. c5 Ke7) 36. Rd4 {[%emt 0:01:25]} Rfd8 {[%emt 0:01:12]} 37. c5 {[%emt 0:01:23]} bxc5 {[%emt 0:00:37]} 38. bxc5 {[%emt 0:00:02]} Kf6 {[%emt 0:00:19]} 39. c6 {[%emt 0:01:32]} e5 {[%emt 0:00:38]} (39... Ke7 $142) 40. fxe5+ {[%emt 0:01:15]} Kxe5 {[%emt 0:00:30]} 41. Rd5+ {[%emt 0:50:05]} 1-0

[Event "4NCL Div 1 2024-25"]
[Site "England"]
[Date "2024.11.23"]
[Round "1.29"]
[White "Yoon, Jacob D"]
[Black "Arkell, Keith C"]
[Result "1/2-1/2"]
[Annotator "TA"]
[ECO "B17"]
[WhiteElo "2270"]
[BlackElo "2359"]
[PlyCount "109"]
[EventDate "2024.11.23"]
[EventType "team-tourn"]
[EventCountry "ENG"]
[SourceTitle "playchess.com"]
[Source "ChessBase"]
[SourceQuality "1"]
[TimeControl "40/6000+30:3000+30"]

{[%evp 15,109,48,68,69,83,72,84,74,86,73,76,65,105,82,90,56,105,105,123,127,140,118,117,104,102,101,131,132,131,122,124,101,104,100,108,84,96,90,141,61,108,96,95,106,97,95,105,76,73,60,55,52,116,52,58,65,57,58,63,49,65,49,58,28,27,0,0,0,0,0,0,0,-7,-13,0,0,0,0,0,0,4,0,70,70,63,0,0,-5,-5,-8,-8,-14,-5,-11,0,0]} 1. e4 {[%emt 0:11:14]} c6 {[%emt 0:10:04]} 2. d4 {[%emt 0:00:37]} d5 {[%emt 0:00:05]} 3. Nc3 {[%emt 0:00:03]} dxe4 {[%emt 0:00:24]} 4. Nxe4 {[%emt 0:00:08]} Nd7 {[%emt 0:00:04]} 5. Ng5 {[%emt 0:00:16]} Ngf6 {[%emt 0:00:09]} 6. Bd3 {[%emt 0:00:04]} Nb6 {[%emt 0:00:08]} 7. Qe2 {[%emt 0:00:08]} Bg4 {[%emt 0:02:13]} 8. N1f3 {[%emt 0:00:45]} Bxf3 {[%emt 0:00:54]} 9. Nxf3 {[%emt 0:00:08]} g6 {[%emt 0:02:17]} 10. Bg5 {[%emt 0:15:51]} Bg7 {[%emt 0:00:08]} 11. O-O-O {[%emt 0:00:08]} h6 {[%emt 0:03:38]} 12. Bd2 {[%emt 0:01:14]} e6 {[%emt 0:13:07]} 13. c3 {[%emt 0:11:37]} Qe7 {[%emt 0:03:08]} 14. Ne5 {[%emt 0:11:20]} O-O-O {[%emt 0:01:17]} 15. Qf3 {[%emt 0:00:45]} Nbd5 {[%emt 0:11:53]} (15... Rhf8 $14) 16. a3 $16 {[%emt 0:13:56]} Qe8 {[%emt 0:09:01]} 17. Bc2 {[%emt 0:06:22]} Ne7 {[%emt 0:08:57]} 18. Rhe1 {[%emt 0:06:36]} Rf8 {[%emt 0:04:09]} 19. g4 {[%emt 0:07:26]} Nd7 {[%emt 0:04:11]} 20. Nd3 {[%emt 0:01:03]} Nb6 {[%emt 0:01:35]} 21. Bb3 {[%emt 0:01:50]} Kb8 {[%emt 0:01:42]} 22. Nc5 {[%emt 0:03:01]} Ka8 {[%emt 0:04:55]} 23. Qg3 {[%emt 0:02:33]} Nd7 {[%emt 0:05:19]} 24. Nd3 {[%emt 0:01:19]} Rc8 {[%emt 0:01:51]} 25. Bf4 {[%emt 0:05:00]} Qd8 {[%emt 0:02:32]} 26. Bd6 {[%emt 0:01:11]} Re8 {[%emt 0:01:12]} (26... h5 $142) 27. Qf4 {[%emt 0:01:43]} (27. Qf3 $16 Rf8 28. a4) 27... Bf6 {[%emt 0:03:47]} (27... Nf6 $14) 28. Kb1 $16 {[%emt 0:00:53]} (28. Qxh6 $2 Nf5 29. gxf5 (29. Qf4 $2 Nxd4 30. cxd4 Bg5 $19) 29... Bg5+ 30. Bf4 Bxh6 31. Bxh6 gxf5 $19 (31... exf5 $2 32. Bxf7 Re4 33. Be6 $19)) 28... g5 {[%emt 0:00:15]} 29. Qf3 {[%emt 0:00:40]} Ng6 {[%emt 0:04:25]} 30. Bg3 {[%emt 0:01:06]} Rf8 {[%emt 0:05:30]} 31. Bc2 {[%emt 0:02:20]} Be7 {[%emt 0:00:43]} 32. Nc1 {[%emt 0:01:03]} Nh4 $1 {[%emt 0:00:56]} 33. Qe2 {[%emt 0:01:45]} (33. Bxh4 {simplifies} gxh4 34. Nd3 Qb6 35. Ka2) 33... Qb6 {[%emt 0:00:39] [#]} (33... Ng2 $14) 34. Ka2 {[%emt 0:00:36]} (34. f4 $1 $16) 34... Ng2 $14 {[%emt 0:01:39]} 35. Rg1 {[%emt 0:00:03]} Nf4 {[%emt 0:00:04]} 36. Bxf4 {[%emt 0:00:04]} gxf4 {[%emt 0:00:03]} 37. Nd3 {[%emt 0:00:48]} Bd6 {[%emt 0:00:25]} 38. Qf3 {[%emt 0:00:56]} Qc7 {[%emt 0:00:32]} 39. c4 {[%emt 0:01:14]} c5 {[%emt 0:00:43]} 40. d5 {[%emt 0:00:24]} exd5 {[%emt 0:01:02]} 41. Qxd5 {[%emt 0:50:12]} Nb6 {[%emt 0:50:30]} 42. Qf5 $1 {[%emt 0:00:00]} Nxc4 {[%emt 0:00:00]} 43. Rge1 {[%emt 0:00:00]} Nb6 {[%emt 0:00:00]} 44. Re4 {[%emt 0:00:00]} Rfe8 {[%emt 0:00:00]} 45. Rde1 {[%emt 0:00:00]} Rxe4 {[%emt 0:00:00]} 46. Rxe4 {[%emt 0:00:00]} c4 {[%emt 0:00:00]} 47. Nxf4 {[%emt 0:00:00]} c3 {[%emt 0:00:00]} 48. b3 {[%emt 0:00:00]} a6 {[%emt 0:00:00]} (48... Rd8 $11) 49. Nd5 $1 $14 {[%emt 0:00:00]} Nxd5 {[%emt 0:00:00]} 50. Qxd5 {[%emt 0:00:00]} (50. Rc4 $14 Re8 51. Rxc7 (51. Qxd5 Qb6 $11) 51... Nxc7 52. Be4 (52. Qxf7 Re2 $16) 52... Bxh2 53. Qf3) 50... Rd8 {[%emt 0:00:00]} 51. Rc4 {[%emt 0:00:00]} Qb6 {[%emt 0:00:00]} 52. Qf5 {[%emt 0:00:00]} (52. Rxc3 $2 {too greedy.} Bb4 $19 (52... Bxh2 53. Qxf7 Rd2 54. Rc8+ Ka7 55. Qf8 $11)) 52... Bxh2 {[%emt 0:00:00]} 53. Rxc3 {[%emt 0:00:44]} Rd2 {[%emt 0:00:00]} 54. Qxf7 {[%emt 0:00:37]} Qxf2 {[%emt 0:00:34]} 55. Qxf2 {[%emt 0:00:54]} 1/2-1/2

[Event "4NCL Div 1 2024-25"]
[Site "England"]
[Date "2024.11.23"]
[Round "1.30"]
[White "Eggleston, David J"]
[Black "Mirzoeva, Elmira"]
[Result "1-0"]
[Annotator "TA"]
[ECO "B12"]
[WhiteElo "2339"]
[BlackElo "2258"]
[PlyCount "75"]
[EventDate "2024.11.23"]
[EventType "team-tourn"]
[EventCountry "ENG"]
[SourceTitle "playchess.com"]
[Source "ChessBase"]
[SourceQuality "1"]
[TimeControl "40/6000+30:3000+30"]

{[%evp 11,75,0,0,0,0,0,0,0,0,-14,0,0,0,0,7,0,0,0,0,0,95,86,93,85,81,78,165,161,215,187,221,220,262,200,240,229,218,123,127,121,131,150,217,122,256,205,190,195,199,143,398,395,379,308,478,461,476,374,29989,29980,29990,29991,29991,29992,29997,29998]} 1. e4 {[%emt 0:10:01]} c6 {[%emt 0:13:03]} 2. d4 {[%emt 0:00:15]} d5 {[%emt 0:00:08]} 3. e5 {[%emt 0:00:25]} Bf5 {[%emt 0:00:21]} 4. h4 {[%emt 0:00:11]} h5 {[%emt 0:00:36]} 5. c4 {[%emt 0:00:07]} e6 {[%emt 0:00:34]} 6. Nc3 {[%emt 0:00:05]} Ne7 {[%emt 0:01:14]} 7. Nge2 {[%emt 0:00:11]} Nd7 {[%emt 0:01:23]} 8. Ng3 {[%emt 0:00:09]} Bg6 {[%emt 0:00:30]} 9. Bg5 {[%emt 0:00:13]} Qb6 {[%emt 0:02:01]} 10. Rc1 {[%emt 0:00:13]} f6 {[%emt 0:01:21]} 11. exf6 {[%emt 0:00:20]} gxf6 {[%emt 0:00:19]} 12. Be3 $1 {[%emt 0:00:08]} O-O-O {[%emt 0:00:32][%cal Be8c8,Bc8b8,Bb8a8][%mdl 32]} 13. cxd5 {[%emt 0:05:33]} Nxd5 {[%emt 0:00:41]} 14. Nxd5 {[%emt 0:00:10]} exd5 {[%emt 0:00:07]} 15. Bd3 {[%emt 0:00:13]} Bb4+ {[%emt 0:21:21]} (15... Qb4+ $11 {keeps the balance.} 16. Ke2 Bxd3+ (16... Qxb2+ 17. Rc2 $16) 17. Qxd3 Qxb2+ 18. Rc2 Qa3) 16. Kf1 $16 {[%emt 0:01:01]} Bxd3+ {[%emt 0:02:46]} 17. Qxd3 {[%emt 0:00:07]} Kb8 {[%emt 0:02:05]} 18. Rh3 {[%emt 0:08:58]} Nf8 {[%emt 0:13:34]} (18... Ka8 $16 {is a better defense.}) 19. Qf5 $1 $18 {[%emt 0:06:20][%csl LRf6,LRh5]} Be7 {[%emt 0:04:24]} (19... Bd6 $142 20. Nxh5 (20. Qxf6 Nh7 $16) 20... Nh7) 20. Nxh5 {[%emt 0:03:17]} Qxb2 {[%emt 0:02:12]} 21. Nxf6 {[%emt 0:03:25]} Ka8 {[%emt 0:06:59]} 22. h5 {[%emt 0:14:17]} Bxf6 {[%emt 0:07:01]} 23. Qxf6 {[%emt 0:00:22][%cal Rf6d8]} Nd7 {[%emt 0:00:04]} 24. Qh4 {[%emt 0:01:02]} ({White should try} 24. Qf5 $18) 24... Rde8 $16 {[%emt 0:03:47][%cal Oe8e3]} 25. Re1 {[%emt 0:05:13]} Qxa2 {[%emt 0:00:26][%cal Oc6c5]} 26. h6 {[%emt 0:51:14]} a5 {[%emt 0:03:38] [#]} (26... Qc2 $16 27. Qg4 Nf6) 27. Kg1 {[%emt 0:00:00]} (27. g4 $1 $18) 27... Qc2 {[%emt 0:10:45]} (27... Nb6 $16) 28. Rc1 {[%emt 0:00:00]} Qb2 {[%emt 0:02:10][%cal Oe8e3] [#] and ...Rxe3! should not be overlooked} 29. Rf1 $1 {[%emt 0:00:00]} a4 {[%emt 0:03:07]} 30. Qg3 {[%emt 0:00:00]} (30. Qg4 $18 Nb6 31. Qd1) 30... Rh7 $2 {[%emt 0:04:47][%mdl 8192]} (30... Nb6 $16) 31. Qg6 $18 {[%emt 0:00:00][%csl LRe8,LRh7]} Reh8 {[%emt 0:00:18]} 32. Rf3 {[%emt 0:00:00] Rf7 would now be deadly.} Qb4 {[%emt 0:01:59]} (32... Ka7 $142 33. Rf7 Rxf7) 33. Rb1 {[%emt 0:00:00]} Qe7 {[%emt 0:00:07]} 34. Qc2 {[%emt 0:00:00]} Rf7 $2 {[%emt 0:02:25]} (34... Nb8 $18 35. Qxa4+ Na6) 35. Qxa4+ {[%emt 0:00:00]} Kb8 {[%emt 0:00:01] Black is weak on the dark squares} 36. Rxf7 {[%emt 0:00:00]} Qxf7 {[%emt 0:00:05]} 37. Qxc6 {[%emt 0:00:00][%csl Gb1][%cal Rc6b7]} b6 {[%emt 0:00:49]} 38. Ra1 {[%emt 0:00:00]} 1-0